Cogmind - Beta 15 @@@ ROGUE MODE // 2025.06.28 @ 23:49:04 Player: pyroperro Result: Destroyed by as-87319 with Assembled Rifle Performance ------------- Evolutions (0) 0 Regions Visited (2) 400 Robots Destroyed (21) 105 Value Destroyed (485) 485 Prototype IDs (0) 0 Alien Tech Used (0) 0 Bonus (0) 0 TOTAL SCORE: 990 Bonus ------- None Cogmind --------- Core Integrity 0/250 Matter 300/300 Energy 100/100 System Corruption 0% Temperature Cool (0) Movement Treading (240) Ox1 Location -10/Mines Parts ------- > --- POWER (1) -------- (None) > --- PROPULSION (2) --- Light Treads Light Treads > --- UTILITY (2) ------ Large Storage Unit > --- WEAPON (2) ------- Beam Rifle > --- INVENTORY (15) --- Ion Engine Light Treads Light Treads Light Treads Light Treads Small Storage Unit Large Storage Unit Signal Interpreter Light Armor Plating Hacking Suite Hacking Suite Peak State ------------ > --- POWER ------------ Ion Engine > --- PROPULSION ------- Light Treads Light Treads > --- UTILITY ---------- Large Storage Unit > --- WEAPON ----------- Beam Rifle Beam Rifle > --- INVENTORY -------- Ion Engine Ion Engine Light Treads Light Treads Light Treads Light Treads Small Storage Unit Large Storage Unit Signal Interpreter Light Armor Plating [Rating: 9] Favorites ----------- Power Ion Engine Engine Ion Engine Propulsion Light Treads Treads Light Treads Wheel Compact Wheel Utility Large Storage Unit Device Tractor Beam Storage Large Storage Unit Weapon Beam Rifle Energy Gun Beam Rifle Ballistic Gun Assault Rifle Build | -11 -10 -10 ------- Run | Yrd Mat Min Slots Evolved . | . . . Power . | . . . Propulsion . | . . . Utility . | . . . Weapon . | . . . Parts Attached 15 | 7 7 1 Power 3 | 1 1 1 Engine 3 | 1 1 1 Core . | . . . Reactor . | . . . Propulsion 5 | 2 3 . Treads 4 | 2 2 . Leg . | . . . Wheel 1 | . 1 . Hover . | . . . Flight . | . . . Utility 3 | 2 1 . Device 1 | 1 . . Storage 2 | 1 1 . Processor . | . . . Hackware . | . . . Protection . | . . . Artifact . | . . . Weapon 4 | 2 2 . Energy Gun 3 | 1 2 . Energy Cannon . | . . . Ballistic Gun 1 | 1 . . Ballistic Cannon . | . . . Launcher . | . . . Special Weapon . | . . . Impact Weapon . | . . . Slashing Weapon . | . . . Piercing Weapon . | . . . Special Melee Weapon . | . . . Unidentified Prototypes . | . . . Parts Lost 5 | . 3 2 Power 1 | . . 1 Propulsion 1 | . 1 . Utility 1 | . 1 . Weapon 2 | . 1 1 Highest Loss Streak 2 | . 2 1 To Critical Strikes . | . . . Average Backups 7 | 2 7 11 Power 1 | . 1 1 Propulsion 2 | . 2 4 Utility 3 | . 3 6 Weapon . | . . . Tool/Special . | . . . Unused Backups 11 | . 2 9 Power . | . . . Propulsion 4 | . . 4 Utility 6 | . 1 5 Weapon 1 | . 1 . Tool/Special . | . . . Average Slot Usage (%) 87 | . 87 71 Engine 13 | . 14 12 Treads 26 | . 26 28 Wheel 1 | . 1 . Device 2 | . 2 . Storage 14 | . 14 14 Energy Gun 21 | . 21 15 Ballistic Gun 6 | . 6 . Peak Build Rating 9 | 7 9 9 Average Rating 7 | 4 7 7 On Entrance 5 | . 7 9 Naked Turns . | . . . Heaviest Build 31 | 15 31 31 Greatest Support 40 | 40 40 40 Greatest Overweight (x) 3 | 3 1 1 Average Overweight (x) . | . . . Largest Inventory Capacity 15 | 8 15 15 Average Capacity 13 | 7 14 15 Most Carried 12 | 3 12 12 Average Carried 7 | 2 7 11 Final Capacity 15 | 8 15 15 Final Carried 12 | 3 12 11 Class Distribution -------------------- 100% | Mutant Dominant Class ---------------- Mutant | -10/Materials Mutant | -10/Mines Resources | -11 -10 -10 ----------- Run | Yrd Mat Min Matter Collected 475 | 279 186 10 Remotely 215 | 126 89 . Salvage Created 659 | 80 579 . Parts 39 | 2 37 . Haulers Intercepted 1 | . 1 . Recyclers Shooed . | . . . Parts Field Recycled . | . . . Retrieved Matter . | . . . Parts Self-Destructed . | . . . Prevented . | . . . Kills | -11 -10 -10 ------- Run | Yrd Mat Min Combat Hostiles Destroyed 15 | . 15 . Guns 14 | . 14 . Classes Destroyed 6 | 1 5 . Hauler 1 | . 1 . Recycler 1 | 1 . . Operator 2 | . 2 . Watcher 2 | . 2 . Swarmer 5 | . 5 . Grunt 10 | . 10 . Best Kill Streak 3 | 1 3 . Combat Bots Only 3 | . 3 . Max Kills in Single Turn 1 | 1 1 . Gunslinging . | . . . Exploded . | . . . Melee . | . . . Uniques/NPCs Destroyed . | . . . Combat | -11 -10 -10 -------- Run | Yrd Mat Min Hostile Shots Fired 123 | . 84 39 Missed 28 | . 18 10 Hits 95 | . 66 29 Melee 3 | . . 3 Projectile 92 | . 66 26 Critical Strikes 1 | . . 1 Part Disruptions 2 | . . 2 Damage Taken 1019 | . 669 350 Core 258 | . 95 163 Absorbed by Shields . | . . . Core Remaining (%) 100 | 100 . . Volleys Fired 85 | 3 80 2 Largest 2 | 2 2 1 Hottest 112 | 70 112 56 Shots Fired 136 | 6 128 2 Gun 136 | 6 128 2 Cannon . | . . . Launcher . | . . . Special . | . . . Kinetic 45 | 3 42 . Thermal 91 | 3 86 2 Explosive . | . . . Electromagnetic . | . . . Robot Hit Streak 18 | 1 18 . Robot Miss Streak 4 | 2 4 2 Penetration Max . | . . . Secondary Targets . | . . . Shots Hit Robots 83 | 2 81 . Core Hits 32 | 2 30 . Critical Kills . | . . . Critical Parts Destroyed . | . . . Critical Strikes 10 | . 10 . Burn 10 | . 10 . Melee Attacks . | . . . Impact . | . . . Slashing . | . . . Piercing . | . . . Sneak Attacks . | . . . Combat Hostiles . | . . . Follow-up Attacks . | . . . Damage Inflicted 1175 | 38 1137 . Guns 1170 | 38 1132 . Cannons . | . . . Explosions . | . . . Melee . | . . . Ramming 5 | . 5 . Kinetic 282 | . 282 . Thermal 888 | 38 850 . Explosive . | . . . Electromagnetic . | . . . Impact . | . . . Slashing . | . . . Piercing . | . . . Highest Corruption . | . . . Average Corruption . | . . . Corruption Purged . | . . . Corruption Blocked . | . . . Overload Shots . | . . . Overflow Damage . | . . . Projectiles . | . . . Explosions . | . . . Melee . | . . . Knockbacks . | . . . Impact . | . . . Kinetic . | . . . Secondary . | . . . Self-Inflicted Damage . | . . . Shots . | . . . Rammed 2 | . 2 . Targets Rammed 2 | . 2 . Kicked . | . . . Crushed . | . . . Highest Temperature 330 | 27 330 36 Average Temperature 53 | 14 56 15 Received Heat Transfer 409 | . 249 160 Effects 1 | . 1 . Interference 1 | . 1 . Siege Activations . | . . . Martial Activations . | . . . Shielding Activations . | . . . Robots Disrupted . | . . . Combat Hostiles . | . . . Robots Corrupted . | . . . Combat Hostiles . | . . . Parts Fried . | . . . Impact Corruptions . | . . . Robots Melted 1 | . 1 . Combat Hostiles 1 | . 1 . Parts Melted 4 | . 4 . Heat Transferred 3071 | 111 2960 . Parts Sabotaged . | . . . Parts Stolen . | . . . Parts Stripped . | . . . Power Chain Reactions . | . . . Alert | -11 -10 -10 ------- Run | Yrd Mat Min Maximum Alert Level . | . . . Low Security (%) 100 | 100 100 100 Level 1 . | . . . Level 2 . | . . . Level 3 . | . . . Level 4 . | . . . Level 5 . | . . . High Security . | . . . Max Security . | . . . Peak Influence 106 | 5 106 2 Initial 3 | . 3 2 Average 27 | . 30 . Influence Increases 536 | 5 531 . Destroy 0b10 Robot/C 300 | . 300 . Destroy 0b10 Robot/NC 30 | 5 25 . Destroy Leader 56 | . 56 . Successful Hack 12 | . 12 . Disable Machine 15 | . 15 . Destroy Structure 3 | . 3 . Partial Spotted 30 | . 30 . Lose Combat Pursuer 90 | . 90 . Influence Decreases 536 | . 529 7 Entered New Map 7 | . 2 5 Time Decay 497 | . 497 . Lost Part 32 | . 30 2 Squads Dispatched 3 | . 3 . Investigation 1 | . 1 . Extermination . | . . . Reinforcement 2 | . 2 . Assault . | . . . Garrison . | . . . Intercept . | . . . Searches Triggered . | . . . Construction Impeded . | . . . Haulers Reinforced . | . . . Active Scanning Responses . | . . . Cargo Convoy Interrupts . | . . . Stealth | -11 -10 -10 --------- Run | Yrd Mat Min Distress Signals 3 | . 3 . Communications Jammed . | . . . Distress Signals . | . . . Times Spotted 44 | . 38 6 Peak Tracking Total 5 | . 5 3 Tactical Retreats 4 | . 4 . Traps | -11 -10 -10 ------- Run | Yrd Mat Min Traps Triggered 1 | . 1 . Indirectly . | . . . Trap Hack Attempts . | . . . Triggered . | . . . Disarmed . | . . . Reprogrammed . | . . . Reused . | . . . Traps Extracted . | . . . Installed . | . . . Triggered . | . . . Machines | -11 -10 -10 ---------- Run | Yrd Mat Min Machines Disabled 1 | . 1 . Max in Single Turn 1 | . 1 . Machines Repaired . | . . . Machines Dismantled . | . . . Machines Sabotaged . | . . . Overloaded Fab Kills . | . . . Hacking | -11 -10 -10 --------- Run | Yrd Mat Min Machines Accessed 2 | . 2 . Terminals 2 | . 2 . Fabricators . | . . . Repair Stations . | . . . Recycling Units . | . . . Scanalyzers . | . . . Garrison Access . | . . . Total Hacks 4 | . 4 . Successful 2 | . 2 . Failed 2 | . 2 . Catastrophic . | . . . Database Lockouts . | . . . Manual 4 | . 4 . Terminals 4 | . 4 . Fabricators . | . . . Repair Stations . | . . . Recycling Units . | . . . Scanalyzers . | . . . Garrison Access . | . . . Terminal Hacks . | . . . Fabricator Hacks . | . . . Repair Station Hacks . | . . . Recycling Unit Hacks . | . . . Scanalyzer . | . . . Garrison Access Hacks . | . . . Unauthorized Hacks 2 | . 2 . Terminals 2 | . 2 . Operators 2 | . 2 . Fabricators . | . . . Repair Stations . | . . . Recycling Units . | . . . Scanalyzers . | . . . Garrison Access . | . . . Data Cores Recovered . | . . . Used . | . . . Hacking Detections 1 | . 1 . Full Trace Events . | . . . Feedback Events . | . . . Feedback Blocked . | . . . Robot Schematics Acquired . | . . . Robots Built . | . . . Authchips . | . . . Time . | . . . Total Robot Build Rating . | . . . Part Schematics Acquired . | . . . Parts Built . | . . . Authchips . | . . . Time . | . . . Total Part Build Rating . | . . . Parts Repaired . | . . . Time . | . . . Parts Recycled . | . . . Recycled Matter . | . . . Retrieved Matter . | . . . Retrieved Components . | . . . Parts Scanalyzed . | . . . Part Schematics Acquired . | . . . Parts Damaged . | . . . Bothacking | -11 -10 -10 ------------ Run | Yrd Mat Min Used RIF Installer . | . . . Robots Hacked . | . . . Non-combat . | . . . Combat . | . . . Robot Hacks Applied . | . . . Relay Couplers Released . | . . . Fabnet Peak Effective % . | . . . Robots Rewired . | . . . Allies Hacked . | . . . Hacks Repelled . | . . . Allies | -11 -10 -10 -------- Run | Yrd Mat Min Total Allies . | . . . Largest Group . | . . . Highest-Rated Group . | . . . Highest-Rated Ally . | . . . Total Orders . | . . . Ally Attacks . | . . . Total Damage . | . . . Kills . | . . . Allies Corrupted . | . . . Allies Melted . | . . . Intel | -11 -10 -10 ------- Run | Yrd Mat Min Active Infowar (turns) . | . . . Robot Analysis Total . | . . . Derelict Logs Recovered . | . . . Drone Launches . | . . . Drone Recoveries . | . . . Exploration | -11 -10 -10 ------------- Run | Yrd Mat Min Turns Passed 2062 | 74 1899 89 Spaces Moved 1029 | 33 952 44 Core 10 | 10 . . Treads 942 | 23 875 44 Legs . | . . . Wheels 77 | . 77 . Hover . | . . . Flight . | . . . Fastest Speed 50 | 50 115 160 Average Speed 157 | 160 156 187 Slowest Speed 240 | 200 240 240 Overloaded Moves . | . . . Propulsion Burnouts . | . . . Robots Hopped . | . . . Potential Cave-ins . | . . . Cave-ins Triggered . | . . . Exploration Rate (%) 36 | 4 97 8 Regions Visited 2 Branch Regions 1 Pre-discovered Areas . | . . . Known Exits Taken . | . . . Unknown Exits Taken 2 | 1 1 . Scrap Searched . | . . . Spaces Dug . | . . . Terrain Destroyed . | . . . Melee . | . . . Projectile . | . . . AOE . | . . . Terrain Rammed . | . . . Walls Destroyed . | . . . Machines Disabled . | . . . Actions | -11 -10 -10 --------- Run | Yrd Mat Min Total 1327 | 45 1233 49 Wait 178 | . 177 1 Move 1027 | 32 951 44 Hop . | . . . Pick Up 14 | 3 11 . Fast Attach 10 | 7 3 . Attach 2 | . 2 . Detach . | . . . Swap 3 | . 2 1 Drop 6 | . 5 1 Fire 85 | 3 80 2 Melee . | . . . Ram . | . . . Kick . | . . . Crush 2 | . 2 . Escape Stasis . | . . . Rewire . | . . . Trap . | . . . Miscellaneous . | . . . Route ------- -11/Scrapyard -10/Materials (discovered 4 exits: [*Mat x3] / [*Min]) -10/Mines History --------- Turn | Location | Event 33 | -11/Scrapyard | Discovered new exit (range 15) 75 | -11/Scrapyard | Entered Materials 336 | -10/Materials | Build established: Mutant 517 | -10/Materials | Discovered new exit (range 5) 746 | -10/Materials | Discovered new exit (range 15) 977 | -10/Materials | Discovered new exit (range 4) 1241 | -10/Materials | Discovered new exit (range 6) 1974 | -10/Materials | Entered Mines 1983 | -10/Mines | Assembled infested the area 1986 | -10/Mines | Core integrity fell below 50% 1988 | -10/Mines | Assisted by a Guerilla fighting off Assembled 2039 | -10/Mines | Met a Derelict bent on vengeance 2043 | -10/Mines | Core integrity fell below 20% 2063 | -10/Mines | Destroyed by as-87319 with Assembled Rifle Last Messages --------------- 01989_ S-10 Pest suffers critical hit (Destroy). 01989_ HV Slug penetrates Laser Drill. 01989_ Laser Drill disabled. 01991_ HV Slug penetrates S-10 Pest. 01991_ S-10 Pest suffers critical hit (Destroy). 01991_ S-10 Pest destroyed. 01997_ Dropped Ion Engine. 02021_ U-05 Engineer lays Concrete. 02024_ U-05 Engineer builds a Wall. 02028_ The unstable cave ceiling collapses. 02028_ Imp. Light Armor Plating crushed. 02028_ U-05 Engineer builds a Wall. 02028_ U-05 Engineer lays Concrete. 02029_ U-05 Engineer forms the Earth. 02032_ U-05 Engineer builds a Wall. 02033_ U-05 Engineer lays Concrete. 02040_ U-05 Engineer builds a Wall. 02045_ Acquired 10 matter. 02055_ U-05 Engineer builds a Wall. 02058_ Ion Engine destroyed. Map ----- +----------------------------------------------------+ | ??????????????????????????????????????? | | ??????????????????????????????????????? | | ??????????????????????????????????????? | | ??????????????????????????????????????? | | ??????????????????????????????????????? | | ??????????????????????????????????????? | | ??????????????????????????????????????? | | ??????????????????????????????????????? | | ??????????????????????????????????????? | | ??????????????????????????????????????? | | ??????????????????????????????????????? | | ??????????????????????????????????????? | | ??????????????????????????????????????? | | ??????????????????????????????????????? | | ??????????????????????????????????????? | | ??????????????????????????????????????? | | ??????????????????????????????????????? | | ??????????????????????????????????????? | | ????????????????????????#########?????? | | ????????????????????????# #?????? | | ????????????????????????# "" #?????? | | ????????????????????????# "" #?????? | | ????????????????????????# "" #?????? | | ????????????????????????# #?????? | | ????????????????????# ## #?????? | | ????????????????????# @%a% #?????? | | ????????????????????# ## aa #?????? | | ????????????????????#???#### ####?????? | | ?????????????????????????# #%# ??????? | | ????????????????????????? ##%# ##?????? | | ?????????????????????????# #*####?????? | | ?????????????????????????# #%# ##?????? | | ?????????????????????????# #|###??????? | | ?????????????????????????##!=! ##?????? | | ?????????????????????????# #?????? | | ????????????????????????##* #?????? | | ???????????????????????## ##?????? | | ???????????????????????# ###??????? | | ???????????????????????## ###????????? | | ????????????????????????# ##??????????? | | ????????????????????????# #######?????? | | ????????????????????????# #?????? | | ????????????????????????####### #?????? | | ??????????????????????????????????????? | | ??????????????????????????????????????? | | ??????????????????????????????????????? | | ??????????????????????????????????????? | | ??????????????????????????????????????? | | ??????????????????????????????????????? | | ??????????????????????????????????????? | +----------------------------------------------------+ Best States ------------- Heat Dissipation 25 Energy Generation 10 Energy Capacity 250 Matter Stores 300 Matter Capacity 300 Sight Range 16 Terrain Scan Density 10 Evasion (%) 40 Recoil Reduction 2 Item Schematics ----------------- None Robot Schematics ------------------ None Fabricated ------------ Nothing Repaired ---------- Nothing Alien Tech Used ----------------- None Achievements -------------- It's Just You Challenges ------------ None Game ------ Seed SpliceAutogunBroadsword Manual? 0 Play Time 00:19:52 Cumulative 4.8 hours Start 2025.06.28 @ 23:19:16 End 2025.06.28 @ 23:49:04 Sessions 1 Manual Loads 0 Difficulty Rogue Special Mode None Game No. 7 Rogue 7 Adventurer 0 Explorer 0 Win Type - Total 0 Types 0/0/0/0/0/0/0/0/0/0 Lore% 4 Gallery% 9 Achievement% 13 Wizard Run 0 Options --------- Layout 2 ASCII 0 Keyboard 0 Movement Mouse Keybinds 0 Fullscreen 1 Font 24/Smallcaps Map View 50x44 Zoom Use 0% Tactical HUD 1 Map Filters NONE Filters NONE Steam 1 RUN: 0990491c-527b-4a12-b69e-8b3e0e31b5e0